[Event "Titled Tuesday Blitz August 22 Late 2023"]
[White "Bullen, Alex"]
[Black "Jaskolka, Tomasz"]
[WhiteFideId "1801627"]
[BlackFideId "1170791"]
[WhiteElo "2342"]
[BlackElo "2494"]
[Result "0-1"]
[Round "7"]
[TimeControl "180+1"]
[Date "2023.08.22"]
[WhiteClock "0:00:08"]
[BlackClock "0:00:09"]
[Board "123"]

1. d4 {[%clk 0:03:00]}  e6 {[%clk 0:02:59]} 2. Nf3 {[%clk 0:03:00]}  f5 {[%clk 0:03:00]} 3. Bf4 {[%clk 0:02:58]}  Nf6 {[%clk 0:03:00]} 4. e3 {[%clk 0:02:59]}  Bd6 {[%clk 0:03:00]} 5. Bxd6 {[%clk 0:02:56]}  cxd6 {[%clk 0:03:01]} 6. c4 {[%clk 0:02:51]}  O-O {[%clk 0:03:01]} 7. Nc3 {[%clk 0:02:50]}  b6 {[%clk 0:03:00]} 8. Be2 {[%clk 0:02:49]}  Bb7 {[%clk 0:03:00]} 9. O-O {[%clk 0:02:45]}  Qe8 {[%clk 0:03:01]} 10. d5 {[%clk 0:02:36]}  e5 {[%clk 0:02:41]} 11. Qc2 {[%clk 0:02:26]}  g6 {[%clk 0:02:22]} 12. Nb5 {[%clk 0:02:20]}  Qe7 {[%clk 0:02:15]} 13. Nc7 {[%clk 0:02:19]}  Na6 {[%clk 0:02:16]} 14. Nxa8 {[%clk 0:02:18]}  Bxa8 {[%clk 0:02:17]} 15. a3 {[%clk 0:02:16]}  Nc5 {[%clk 0:02:13]} 16. b4 {[%clk 0:02:04]}  Nce4 {[%clk 0:02:13]} 17. Nd2 {[%clk 0:02:04]}  g5 {[%clk 0:02:09]} 18. f3 {[%clk 0:02:00]}  Nxd2 {[%clk 0:02:09]} 19. Qxd2 {[%clk 0:02:00]}  Qg7 {[%clk 0:02:09]} 20. Kh1 {[%clk 0:01:53]}  Kh8 {[%clk 0:02:09]} 21. g4 {[%clk 0:01:45]}  fxg4 {[%clk 0:02:06]} 22. fxg4 {[%clk 0:01:45]}  Ne4 {[%clk 0:01:59]} 23. Qe1 {[%clk 0:01:31]}  Rf6 {[%clk 0:01:59]} 24. Rxf6 {[%clk 0:01:20]}  Qxf6 {[%clk 0:01:57]} 25. Qg1 {[%clk 0:01:19]}  Nc3 {[%clk 0:01:38]} 26. Rf1 {[%clk 0:00:47]}  Nxd5 {[%clk 0:01:11]} 27. Bf3 {[%clk 0:00:31]}  e4 {[%clk 0:00:20]} 28. Bxe4 {[%clk 0:00:23]}  Nxe3 {[%clk 0:00:19]} 29. Bxa8 {[%clk 0:00:10]}  Nxf1 {[%clk 0:00:18]} 30. Kg2 {[%clk 0:00:09]}  Nd2 {[%clk 0:00:18]} 31. Qf2 {[%clk 0:00:08]}  Qxf2+ {[%clk 0:00:17]} 32. Kxf2 {[%clk 0:00:09]}  Nxc4 {[%clk 0:00:18]} 33. Bd5 {[%clk 0:00:07]}  Nxa3 {[%clk 0:00:17]} 34. Ke3 {[%clk 0:00:07]}  Nc2+ {[%clk 0:00:17]} 35. Ke4 {[%clk 0:00:06]}  Nxb4 {[%clk 0:00:18]} 36. Bb3 {[%clk 0:00:06]}  Kg7 {[%clk 0:00:18]} 37. Kf5 {[%clk 0:00:06]}  h6 {[%clk 0:00:18]} 38. Bc4 {[%clk 0:00:05]}  d5 {[%clk 0:00:17]} 39. Bb3 {[%clk 0:00:05]}  d6 {[%clk 0:00:17]} 40. Ke6 {[%clk 0:00:04]}  d4 {[%clk 0:00:18]} 41. Kxd6 {[%clk 0:00:05]}  d3 {[%clk 0:00:18]} 42. Ke5 {[%clk 0:00:02]}  d2 {[%clk 0:00:18]} 43. Kd4 {[%clk 0:00:02]}  Kf6 {[%clk 0:00:13]} 44. Kc3 {[%clk 0:00:03]}  a5 {[%clk 0:00:11]} 45. Kxd2 {[%clk 0:00:03]}  Ke5 {[%clk 0:00:12]} 46. Ke3 {[%clk 0:00:02]}  Nd5+ {[%clk 0:00:12]} 47. Kd3 {[%clk 0:00:02]}  Nf6 {[%clk 0:00:12]} 48. h3 {[%clk 0:00:01]}  Nd5 {[%clk 0:00:13]} 49. Kc4 {[%clk 0:00:01]}  Nf4 {[%clk 0:00:05]} 50. Kb5 {[%clk 0:00:02]}  Nxh3 {[%clk 0:00:06]} 51. Kxb6 {[%clk 0:00:02]}  Nf2 {[%clk 0:00:06]} 52. Bf7 {[%clk 0:00:01]}  Nxg4 {[%clk 0:00:06]} 53. Kxa5 {[%clk 0:00:02]}  Kf4 {[%clk 0:00:06]} 54. Kb4 {[%clk 0:00:02]}  Nf6 {[%clk 0:00:05]} 55. Kc4 {[%clk 0:00:02]}  h5 {[%clk 0:00:06]} 56. Kd3 {[%clk 0:00:02]}  Kf3 {[%clk 0:00:06]} 57. Bg6 {[%clk 0:00:02]}  g4 {[%clk 0:00:05]} 58. Bf5 {[%clk 0:00:01]}  h4 {[%clk 0:00:04]} 59. Be6 {[%clk 0:00:01]}  g3 {[%clk 0:00:03]} 60. Bc8 {[%clk 0:00:02]}  Ng4 {[%clk 0:00:03]} 61. Bb7+ {[%clk 0:00:02]}  Kf2 {[%clk 0:00:03]} 62. Kd2 {[%clk 0:00:03]}  g2 {[%clk 0:00:04]} 63. Bxg2 {[%clk 0:00:03]}  Kxg2 {[%clk 0:00:05]} 64. Ke1 {[%clk 0:00:03]}  h3 {[%clk 0:00:06]} 65. Ke2 {[%clk 0:00:04]}  h2 {[%clk 0:00:06]} 66. Kd3 {[%clk 0:00:04]}  h1=Q {[%clk 0:00:07]} 67. Ke4 {[%clk 0:00:05]}  Qe1+ {[%clk 0:00:07]} 68. Kf5 {[%clk 0:00:06]}  Qe5+ {[%clk 0:00:08]} 69. Kg6 {[%clk 0:00:06]}  Kg3 {[%clk 0:00:07]} 70. Kh7 {[%clk 0:00:06]}  Qe6 {[%clk 0:00:06]} 71. Kh8 {[%clk 0:00:06]}  Qe7 {[%clk 0:00:06]} 72. Kg8 {[%clk 0:00:06]}  Kf4 {[%clk 0:00:06]} 73. Kh8 {[%clk 0:00:07]}  Kg5 {[%clk 0:00:07]} 74. Kg8 {[%clk 0:00:07]}  Kg6 {[%clk 0:00:08]} 75. Kh8 {[%clk 0:00:08]}  Qd8# {[%clk 0:00:09]} 0-1


[Site "https://www.chess.com"]

[Event "Titled Tuesday Blitz August 22 Late 2023"]
[White "Harish, Neeraj"]
[Black "Vafin, Ayrat"]
[WhiteFideId "30958130"]
[BlackFideId "4146530"]
[WhiteElo "2340"]
[BlackElo "2489"]
[Result "0-1"]
[Round "7"]
[TimeControl "180+1"]
[Date "2023.08.22"]
[WhiteClock "0:00:41"]
[BlackClock "0:00:20"]
[Board "124"]

1. e4 {[%clk 0:03:00]}  e5 {[%clk 0:02:59]} 2. Nf3 {[%clk 0:03:00]}  Nf6 {[%clk 0:03:00]} 3. d4 {[%clk 0:02:58]}  Nxe4 {[%clk 0:02:59]} 4. Bd3 {[%clk 0:02:56]}  d5 {[%clk 0:02:59]} 5. Nxe5 {[%clk 0:02:55]}  Nd7 {[%clk 0:02:59]} 6. Nc3 {[%clk 0:02:51]}  Nxe5 {[%clk 0:02:54]} 7. dxe5 {[%clk 0:02:50]}  Nxc3 {[%clk 0:02:54]} 8. bxc3 {[%clk 0:02:50]}  Be7 {[%clk 0:02:50]} 9. O-O {[%clk 0:02:50]}  O-O {[%clk 0:02:48]} 10. f4 {[%clk 0:02:50]}  f5 {[%clk 0:02:34]} 11. Be3 {[%clk 0:02:49]}  Be6 {[%clk 0:02:32]} 12. Qf3 {[%clk 0:02:45]}  c5 {[%clk 0:02:27]} 13. Kh1 {[%clk 0:02:43]}  Qa5 {[%clk 0:02:19]} 14. Bd2 {[%clk 0:02:32]}  Rad8 {[%clk 0:01:55]} 15. Rf2 {[%clk 0:02:30]}  c4 {[%clk 0:01:32]} 16. Bf1 {[%clk 0:02:27]}  Bc5 {[%clk 0:01:32]} 17. Be3 {[%clk 0:02:24]}  Qxc3 {[%clk 0:01:28]} 18. Bxc5 {[%clk 0:02:21]}  Qxa1 {[%clk 0:01:25]} 19. Bxf8 {[%clk 0:02:17]}  Kxf8 {[%clk 0:01:23]} 20. Qa3+ {[%clk 0:02:13]}  Kf7 {[%clk 0:01:04]} 21. h3 {[%clk 0:02:11]}  d4 {[%clk 0:00:54]} 22. Kh2 {[%clk 0:02:07]}  d3 {[%clk 0:00:48]} 23. cxd3 {[%clk 0:01:43]}  cxd3 {[%clk 0:00:46]} 24. Qb4 {[%clk 0:00:57]}  Qd4 {[%clk 0:00:32]} 25. Qxb7+ {[%clk 0:00:56]}  Rd7 {[%clk 0:00:32]} 26. Qf3 {[%clk 0:00:56]}  d2 {[%clk 0:00:31]} 27. Be2 {[%clk 0:00:55]}  d1=Q {[%clk 0:00:27]} 28. Qh5+ {[%clk 0:00:52]}  Kf8 {[%clk 0:00:21]} 29. Bxd1 {[%clk 0:00:41]}  Qxf2 {[%clk 0:00:20]} 0-1


[Site "https://www.chess.com"]

[Event "Titled Tuesday Blitz August 22 Late 2023"]
[White "Fernandez Hernandez, Gerardo"]
[Black "Bueno, Alfeu Junior Varela"]
[WhiteFideId "2207400"]
[BlackFideId "2108879"]
[WhiteElo "2274"]
[BlackElo "2412"]
[Result "0-1"]
[Round "7"]
[TimeControl "180+1"]
[Date "2023.08.22"]
[WhiteClock "0:00:00"]
[BlackClock "0:00:49"]
[Board "132"]

1. e4 {[%clk 0:03:00]}  e6 {[%clk 0:02:58]} 2. d3 {[%clk 0:02:59]}  d5 {[%clk 0:02:59]} 3. Nd2 {[%clk 0:02:57]}  Nf6 {[%clk 0:02:59]} 4. Ngf3 {[%clk 0:02:56]}  dxe4 {[%clk 0:03:00]} 5. dxe4 {[%clk 0:02:56]}  Bc5 {[%clk 0:03:00]} 6. Be2 {[%clk 0:02:52]}  e5 {[%clk 0:02:51]} 7. O-O {[%clk 0:02:48]}  Nc6 {[%clk 0:02:50]} 8. c3 {[%clk 0:02:48]}  a5 {[%clk 0:02:50]} 9. h3 {[%clk 0:02:43]}  O-O {[%clk 0:02:49]} 10. Re1 {[%clk 0:02:42]}  Qe7 {[%clk 0:02:37]} 11. Bb5 {[%clk 0:02:26]}  Nh5 {[%clk 0:02:32]} 12. Bxc6 {[%clk 0:01:43]}  bxc6 {[%clk 0:02:29]} 13. Nc4 {[%clk 0:01:43]}  Rd8 {[%clk 0:02:04]} 14. Qc2 {[%clk 0:01:23]}  f6 {[%clk 0:02:00]} 15. Be3 {[%clk 0:01:20]}  Ba6 {[%clk 0:01:55]} 16. Bxc5 {[%clk 0:01:19]}  Qxc5 {[%clk 0:01:56]} 17. Ne3 {[%clk 0:01:19]}  Nf4 {[%clk 0:01:55]} 18. Nf5 {[%clk 0:00:59]}  Bd3 {[%clk 0:01:48]} 19. Qb3+ {[%clk 0:00:55]}  Bc4 {[%clk 0:01:40]} 20. Qc2 {[%clk 0:00:48]}  a4 {[%clk 0:01:33]} 21. b3 {[%clk 0:00:27]}  Bd3 {[%clk 0:01:22]} 22. Qb2 {[%clk 0:00:22]}  a3 {[%clk 0:01:09]} 23. Qc1 {[%clk 0:00:20]}  Ne2+ {[%clk 0:01:08]} 24. Rxe2 {[%clk 0:00:19]}  Bxe2 {[%clk 0:01:09]} 25. Ne1 {[%clk 0:00:11]}  Rd1 {[%clk 0:01:07]} 26. Qxd1 {[%clk 0:00:09]}  Bxd1 {[%clk 0:01:07]} 27. Rxd1 {[%clk 0:00:09]}  g6 {[%clk 0:01:03]} 28. Ne3 {[%clk 0:00:08]}  Qxc3 {[%clk 0:01:03]} 29. Nf3 {[%clk 0:00:07]}  Rf8 {[%clk 0:00:57]} 30. Rd2 {[%clk 0:00:07]}  f5 {[%clk 0:00:52]} 31. Rc2 {[%clk 0:00:07]}  Qa1+ {[%clk 0:00:51]} 32. Kh2 {[%clk 0:00:07]}  fxe4 {[%clk 0:00:51]} 33. Nxe5 {[%clk 0:00:06]}  Qxe5+ {[%clk 0:00:52]} 34. g3 {[%clk 0:00:00]}  Qb2 {[%clk 0:00:49]} 0-1


[Site "https://www.chess.com"]

[Event "Titled Tuesday Blitz August 22 Late 2023"]
[White "Romero Ruscalleda, Josep"]
[Black "Matthew_Clarke"]
[WhiteFideId "2231859"]
[WhiteElo "2401"]
[BlackElo "2263"]
[Result "1-0"]
[Round "7"]
[TimeControl "180+1"]
[Date "2023.08.22"]
[WhiteClock "0:01:07"]
[BlackClock "0:00:00"]
[Board "134"]

1. e4 {[%clk 0:02:54]}  c5 {[%clk 0:02:58]} 2. c3 {[%clk 0:02:54]}  d5 {[%clk 0:02:53]} 3. exd5 {[%clk 0:02:54]}  Qxd5 {[%clk 0:02:52]} 4. Nf3 {[%clk 0:02:54]}  Nf6 {[%clk 0:02:51]} 5. Na3 {[%clk 0:02:54]}  Nc6 {[%clk 0:02:42]} 6. Bc4 {[%clk 0:02:52]}  Qd8 {[%clk 0:02:39]} 7. O-O {[%clk 0:02:51]}  e6 {[%clk 0:02:31]} 8. Re1 {[%clk 0:02:50]}  Be7 {[%clk 0:02:27]} 9. Nc2 {[%clk 0:02:48]}  O-O {[%clk 0:02:25]} 10. d4 {[%clk 0:02:48]}  cxd4 {[%clk 0:02:06]} 11. Ncxd4 {[%clk 0:02:48]}  Nxd4 {[%clk 0:01:51]} 12. cxd4 {[%clk 0:02:48]}  b6 {[%clk 0:01:46]} 13. Bf4 {[%clk 0:02:46]}  Bb7 {[%clk 0:01:45]} 14. Ne5 {[%clk 0:02:45]}  Nd7 {[%clk 0:01:16]} 15. Qe2 {[%clk 0:02:23]}  Nxe5 {[%clk 0:01:12]} 16. dxe5 {[%clk 0:02:23]}  Qd4 {[%clk 0:01:08]} 17. Bg3 {[%clk 0:02:18]}  Rac8 {[%clk 0:01:06]} 18. Rac1 {[%clk 0:02:17]}  Rfd8 {[%clk 0:00:51]} 19. h3 {[%clk 0:02:07]}  Qd2 {[%clk 0:00:36]} 20. Red1 {[%clk 0:01:36]}  Qxe2 {[%clk 0:00:35]} 21. Bxe2 {[%clk 0:01:35]}  Rxd1+ {[%clk 0:00:21]} 22. Rxd1 {[%clk 0:01:35]}  Bd5 {[%clk 0:00:22]} 23. b3 {[%clk 0:01:30]}  Rc2 {[%clk 0:00:21]} 24. Bc4 {[%clk 0:01:27]}  Bxc4 {[%clk 0:00:18]} 25. bxc4 {[%clk 0:01:27]}  Rxa2 {[%clk 0:00:11]} 26. Rd7 {[%clk 0:01:22]}  Kf8 {[%clk 0:00:10]} 27. Rb7 {[%clk 0:01:21]}  Ke8 {[%clk 0:00:09]} 28. Bf4 {[%clk 0:01:14]}  g5 {[%clk 0:00:07]} 29. Be3 {[%clk 0:01:13]}  Ra4 {[%clk 0:00:02]} 30. g3 {[%clk 0:01:08]}  Rxc4 {[%clk 0:00:00]} 31. Rxa7 {[%clk 0:01:07]} 1-0


[Site "https://www.chess.com"]

[Event "Titled Tuesday Blitz August 22 Late 2023"]
[White "Melikhov, Evgeny V."]
[Black "Erece, Ece Alkim"]
[WhiteFideId "4122046"]
[BlackFideId "6346006"]
[WhiteElo "2387"]
[BlackElo "2231"]
[Result "1-0"]
[Round "7"]
[TimeControl "180+1"]
[Date "2023.08.22"]
[WhiteClock "0:00:19"]
[BlackClock "0:00:03"]
[Board "136"]

1. d4 {[%clk 0:03:00]}  Nf6 {[%clk 0:02:54]} 2. c4 {[%clk 0:03:01]}  e6 {[%clk 0:02:54]} 3. Nc3 {[%clk 0:03:01]}  Bb4 {[%clk 0:02:54]} 4. Qc2 {[%clk 0:03:01]}  b6 {[%clk 0:02:50]} 5. e4 {[%clk 0:02:59]}  c5 {[%clk 0:02:43]} 6. dxc5 {[%clk 0:02:41]}  bxc5 {[%clk 0:02:39]} 7. e5 {[%clk 0:02:39]}  Ng8 {[%clk 0:02:27]} 8. Nf3 {[%clk 0:02:38]}  Nc6 {[%clk 0:02:26]} 9. Bd3 {[%clk 0:02:36]}  Nd4 {[%clk 0:02:25]} 10. Nxd4 {[%clk 0:02:26]}  cxd4 {[%clk 0:02:24]} 11. a3 {[%clk 0:02:26]}  Ba5 {[%clk 0:01:53]} 12. b4 {[%clk 0:02:25]}  Bc7 {[%clk 0:01:53]} 13. Ne4 {[%clk 0:02:03]}  Bxe5 {[%clk 0:01:52]} 14. O-O {[%clk 0:01:55]}  Nf6 {[%clk 0:01:49]} 15. Bb2 {[%clk 0:01:51]}  d5 {[%clk 0:01:39]} 16. Nxf6+ {[%clk 0:01:41]}  Qxf6 {[%clk 0:01:37]} 17. cxd5 {[%clk 0:01:39]}  exd5 {[%clk 0:01:36]} 18. Bb5+ {[%clk 0:01:39]}  Bd7 {[%clk 0:01:32]} 19. Bxd7+ {[%clk 0:01:38]}  Kxd7 {[%clk 0:01:33]} 20. Rac1 {[%clk 0:01:28]}  Qb6 {[%clk 0:01:26]} 21. Qf5+ {[%clk 0:01:22]}  Qe6 {[%clk 0:01:24]} 22. Qd3 {[%clk 0:01:20]}  Rac8 {[%clk 0:01:21]} 23. Bxd4 {[%clk 0:01:18]}  Bxd4 {[%clk 0:01:06]} 24. Qxd4 {[%clk 0:01:17]}  Rxc1 {[%clk 0:00:59]} 25. Rxc1 {[%clk 0:01:16]}  Rc8 {[%clk 0:00:57]} 26. Qxa7+ {[%clk 0:01:14]}  Kd8 {[%clk 0:00:53]} 27. Rxc8+ {[%clk 0:01:10]}  Kxc8 {[%clk 0:00:54]} 28. Qc5+ {[%clk 0:01:07]}  Kd7 {[%clk 0:00:47]} 29. Qc3 {[%clk 0:01:02]}  Qe4 {[%clk 0:00:41]} 30. f3 {[%clk 0:00:50]}  Qe2 {[%clk 0:00:28]} 31. h3 {[%clk 0:00:41]}  Qd1+ {[%clk 0:00:26]} 32. Kf2 {[%clk 0:00:39]}  d4 {[%clk 0:00:27]} 33. Qc5 {[%clk 0:00:35]}  Qd2+ {[%clk 0:00:26]} 34. Kg3 {[%clk 0:00:32]}  d3 {[%clk 0:00:22]} 35. Qd4+ {[%clk 0:00:32]}  Ke7 {[%clk 0:00:20]} 36. Qe4+ {[%clk 0:00:23]}  Kf6 {[%clk 0:00:18]} 37. f4 {[%clk 0:00:20]}  Qe2 {[%clk 0:00:03]} 38. Qxe2 {[%clk 0:00:19]} 1-0


[Site "https://www.chess.com"]

[Event "Titled Tuesday Blitz August 22 Late 2023"]
[White "Osmonbekov, Talaibek"]
[Black "petr577"]
[WhiteFideId "2017253"]
[WhiteElo "2200"]
[BlackElo "2375"]
[Result "1-0"]
[Round "7"]
[TimeControl "180+1"]
[Date "2023.08.22"]
[WhiteClock "0:00:33"]
[BlackClock "0:00:00"]
[Board "138"]

1. d4 {[%clk 0:03:00]}  Nf6 {[%clk 0:03:00]} 2. Nc3 {[%clk 0:03:01]}  d5 {[%clk 0:02:59]} 3. Bf4 {[%clk 0:03:02]}  e6 {[%clk 0:02:42]} 4. e3 {[%clk 0:03:02]}  a6 {[%clk 0:02:42]} 5. Nf3 {[%clk 0:03:02]}  c5 {[%clk 0:02:43]} 6. dxc5 {[%clk 0:03:01]}  Bxc5 {[%clk 0:02:44]} 7. Bd3 {[%clk 0:03:02]}  Nc6 {[%clk 0:02:43]} 8. O-O {[%clk 0:03:02]}  Qe7 {[%clk 0:02:42]} 9. e4 {[%clk 0:03:00]}  d4 {[%clk 0:02:10]} 10. Ne2 {[%clk 0:02:59]}  e5 {[%clk 0:02:09]} 11. Bd2 {[%clk 0:02:59]}  O-O {[%clk 0:01:47]} 12. a3 {[%clk 0:02:59]}  h6 {[%clk 0:01:40]} 13. Ng3 {[%clk 0:02:59]}  Kh7 {[%clk 0:01:36]} 14. Re1 {[%clk 0:02:54]}  g6 {[%clk 0:01:34]} 15. Qc1 {[%clk 0:02:51]}  Bg4 {[%clk 0:01:29]} 16. Bxh6 {[%clk 0:02:47]}  Bxf3 {[%clk 0:01:29]} 17. Bxf8 {[%clk 0:02:46]}  Rxf8 {[%clk 0:01:11]} 18. gxf3 {[%clk 0:02:46]}  Kg7 {[%clk 0:01:06]} 19. f4 {[%clk 0:02:45]}  Rh8 {[%clk 0:01:05]} 20. f5 {[%clk 0:02:43]}  Nh5 {[%clk 0:00:55]} 21. Nxh5+ {[%clk 0:02:06]}  Rxh5 {[%clk 0:00:56]} 22. f3 {[%clk 0:01:50]}  Qh4 {[%clk 0:00:54]} 23. Qd2 {[%clk 0:01:50]}  gxf5 {[%clk 0:00:43]} 24. exf5 {[%clk 0:01:46]}  Bd6 {[%clk 0:00:38]} 25. Re4 {[%clk 0:01:46]}  Qh3 {[%clk 0:00:27]} 26. Qg2+ {[%clk 0:01:43]}  Qxg2+ {[%clk 0:00:22]} 27. Kxg2 {[%clk 0:01:43]}  Ne7 {[%clk 0:00:23]} 28. f4 {[%clk 0:01:21]}  exf4 {[%clk 0:00:19]} 29. Rxd4 {[%clk 0:01:20]}  Be5 {[%clk 0:00:20]} 30. Rd7 {[%clk 0:01:08]}  Kf6 {[%clk 0:00:19]} 31. Re1 {[%clk 0:01:03]}  Nc6 {[%clk 0:00:14]} 32. Rxb7 {[%clk 0:01:01]}  f3+ {[%clk 0:00:11]} 33. Kxf3 {[%clk 0:01:00]}  Nd4+ {[%clk 0:00:11]} 34. Ke4 {[%clk 0:00:54]}  Nxf5 {[%clk 0:00:06]} 35. Rb6+ {[%clk 0:00:51]}  Nd6+ {[%clk 0:00:06]} 36. Kf3 {[%clk 0:00:47]}  Rh3+ {[%clk 0:00:05]} 37. Kg4 {[%clk 0:00:44]}  Rxh2 {[%clk 0:00:05]} 38. b3 {[%clk 0:00:39]}  Rg2+ {[%clk 0:00:04]} 39. Kf3 {[%clk 0:00:39]}  Rg3+ {[%clk 0:00:03]} 40. Kf2 {[%clk 0:00:39]}  Rh3 {[%clk 0:00:03]} 41. Rf1 {[%clk 0:00:34]}  Ke6 {[%clk 0:00:00]} 42. Ke2 {[%clk 0:00:33]} 1-0


[Site "https://www.chess.com"]

[Event "Titled Tuesday Blitz August 22 Late 2023"]
[White "Petersson, Kjell"]
[Black "Seresin, Francesco"]
[WhiteFideId "1705148"]
[BlackFideId "886335"]
[WhiteElo "2176"]
[BlackElo "2371"]
[Result "0-1"]
[Round "7"]
[TimeControl "180+1"]
[Date "2023.08.22"]
[WhiteClock "0:00:23"]
[BlackClock "0:00:55"]
[Board "139"]

1. d4 {[%clk 0:03:00]}  d5 {[%clk 0:03:00]} 2. Bf4 {[%clk 0:03:01]}  Nf6 {[%clk 0:02:58]} 3. e3 {[%clk 0:03:01]}  c5 {[%clk 0:02:58]} 4. c3 {[%clk 0:03:01]}  Nc6 {[%clk 0:02:57]} 5. Nd2 {[%clk 0:03:02]}  Qb6 {[%clk 0:02:57]} 6. Qb3 {[%clk 0:03:01]}  e6 {[%clk 0:02:50]} 7. Ngf3 {[%clk 0:02:51]}  c4 {[%clk 0:02:44]} 8. Qc2 {[%clk 0:02:49]}  Nh5 {[%clk 0:02:44]} 9. Bg5 {[%clk 0:02:43]}  h6 {[%clk 0:02:44]} 10. Bh4 {[%clk 0:02:43]}  g5 {[%clk 0:02:44]} 11. Bg3 {[%clk 0:02:44]}  Nxg3 {[%clk 0:02:43]} 12. hxg3 {[%clk 0:02:44]}  Bg7 {[%clk 0:02:44]} 13. e4 {[%clk 0:02:40]}  Bd7 {[%clk 0:02:44]} 14. e5 {[%clk 0:02:33]}  Qc7 {[%clk 0:02:35]} 15. b3 {[%clk 0:02:30]}  cxb3 {[%clk 0:02:19]} 16. axb3 {[%clk 0:02:30]}  a6 {[%clk 0:02:20]} 17. Be2 {[%clk 0:02:13]}  Rc8 {[%clk 0:02:19]} 18. Qb2 {[%clk 0:01:58]}  f6 {[%clk 0:02:08]} 19. exf6 {[%clk 0:01:54]}  Bxf6 {[%clk 0:02:08]} 20. Bd3 {[%clk 0:01:42]}  Ne7 {[%clk 0:01:56]} 21. g4 {[%clk 0:01:30]}  Qxc3 {[%clk 0:01:52]} 22. Qxc3 {[%clk 0:01:25]}  Rxc3 {[%clk 0:01:52]} 23. Ke2 {[%clk 0:01:24]}  Kf7 {[%clk 0:01:44]} 24. Rac1 {[%clk 0:01:24]}  Rxc1 {[%clk 0:01:44]} 25. Rxc1 {[%clk 0:01:23]}  Rc8 {[%clk 0:01:45]} 26. Rxc8 {[%clk 0:01:20]}  Bxc8 {[%clk 0:01:46]} 27. Ne5+ {[%clk 0:01:16]}  Bxe5 {[%clk 0:01:45]} 28. dxe5 {[%clk 0:01:17]}  Nc6 {[%clk 0:01:37]} 29. Nf3 {[%clk 0:01:15]}  b5 {[%clk 0:01:33]} 30. g3 {[%clk 0:01:14]}  Ke7 {[%clk 0:01:33]} 31. Ke3 {[%clk 0:01:13]}  Bd7 {[%clk 0:01:30]} 32. Be2 {[%clk 0:01:08]}  Kd8 {[%clk 0:01:29]} 33. Bd3 {[%clk 0:01:04]}  Kc7 {[%clk 0:01:29]} 34. Be2 {[%clk 0:00:58]}  Kb6 {[%clk 0:01:28]} 35. Bf1 {[%clk 0:00:54]}  Kc5 {[%clk 0:01:28]} 36. Kd3 {[%clk 0:00:51]}  a5 {[%clk 0:01:26]} 37. Kc2 {[%clk 0:00:50]}  Kb4 {[%clk 0:01:15]} 38. Kb2 {[%clk 0:00:45]}  Be8 {[%clk 0:01:15]} 39. Bd3 {[%clk 0:00:44]}  Kc5 {[%clk 0:01:09]} 40. Bc2 {[%clk 0:00:43]}  Nd4 {[%clk 0:01:06]} 41. Nxd4 {[%clk 0:00:39]}  Kxd4 {[%clk 0:01:07]} 42. f4 {[%clk 0:00:39]}  Ke3 {[%clk 0:00:59]} 43. fxg5 {[%clk 0:00:33]}  hxg5 {[%clk 0:00:58]} 44. Bd1 {[%clk 0:00:32]}  Kd4 {[%clk 0:00:57]} 45. Be2 {[%clk 0:00:32]}  Kxe5 {[%clk 0:00:57]} 46. Kc3 {[%clk 0:00:31]}  Ke4 {[%clk 0:00:57]} 47. Bd1 {[%clk 0:00:29]}  e5 {[%clk 0:00:56]} 48. Be2 {[%clk 0:00:29]}  Ke3 {[%clk 0:00:56]} 49. Bf1 {[%clk 0:00:29]}  e4 {[%clk 0:00:56]} 50. Kc2 {[%clk 0:00:28]}  d4 {[%clk 0:00:56]} 51. b4 {[%clk 0:00:25]}  axb4 {[%clk 0:00:56]} 52. Kb3 {[%clk 0:00:23]}  d3 {[%clk 0:00:55]} 0-1


[Site "https://www.chess.com"]